fUST/lending_fUST_20240915
["ID","MTS","AMOUNT","RATE_DAILY","PERIOD"]
[338230035,1726398644519,-17900.48,0.00027397,5]
[338230036,1726398644530,-2584.1,0.00027397,5]
[338230037,1726398644539,-896.85,0.00027397,5]
[338230038,1726398644550,-440.59773058,0.00027397,5]
[338230040,1726398644858,-1145.20226942,0.00027397,5]
[338230041,1726398644868,-147.75523322,0.00027397,5]
[338230042,1726398645103,-352.24476678,0.00027397,5]
[338230043,1726398645113,-500.0,0.00027397,5]
[338230044,1726398645124,-2632.1,0.00027397,5]
[338230045,1726398645133,-500.0,0.00027397,5]
[338230046,1726398645143,-500.0,0.00027397,5]
[338230047,1726398645152,-3998.59,0.00027397,5]
[338230048,1726398645162,-2873.3,0.00027397,5]
[338230049,1726398645171,-500.0,0.00027397,5]
[338230050,1726398645180,-3278.696431,0.00027397,7]
[338230051,1726398645189,-3278.696431,0.00027397,7]
[338230052,1726398645199,-500.0,0.00027397,5]
[338230053,1726398645208,-3278.696431,0.00027397,7]
[338230054,1726398645217,-500.0,0.00027397,5]
[338230055,1726398645226,-3278.696431,0.00027397,7]
[338230056,1726398645236,-3278.696431,0.00027397,7]
[338230057,1726398645245,-3278.696431,0.00027397,7]
[338230058,1726398645254,-500.0,0.00027397,5]
[338230059,1726398645264,-500.0,0.00027397,5]
[338230060,1726398645274,-2094.28,0.00027397,5]
[338230061,1726398645284,-500.0,0.00027397,5]
[338230062,1726398645293,-523.43,0.00027397,5]
[338230063,1726398645302,-4180.88,0.00027397,5]
[338230064,1726398645311,-500.0,0.00027397,5]
[338230065,1726398645320,-1644.12,0.00027397,5]
[338230066,1726398645330,-500.0,0.00027397,5]
[338230067,1726398645339,-500.0,0.00027397,5]
[338230068,1726398645348,-1401.07,0.00027397,5]
[338230069,1726398645357,-1700.44,0.00027397,5]
[338230070,1726398645368,-500.0,0.00027397,5]
[338230071,1726398645378,-1385.76,0.00027397,5]
[338230072,1726398645389,-924.23,0.00027397,5]
[338230073,1726398645398,-151.0,0.00027397,7]
[338230074,1726398645407,-500.0,0.00027397,5]
[338230075,1726398645417,-502.71507777,0.00027397,2]
[338230076,1726398645427,-500.0,0.00027397,5]
[338230077,1726398645438,-500.0,0.00027397,5]
[338230078,1726398645448,-500.0,0.00027397,5]
[338230079,1726398645459,-922.05,0.00027397,5]
[338230080,1726398645469,-19218.69512536,0.00027397,5]
[338230082,1726398645661,-1827.28065253,0.00027397,5]
[338230083,1726398645678,-350.00768034,0.00027397,5]
[338230084,1726398645713,-143.38818923,0.00027397,5]
[338230086,1726398645730,-2492.60855652,0.00027397,5]
[338230101,1726398646159,-1327.76017751,0.00027397,5]
[338230102,1726398646173,-582.65,0.00027397,5]
[338230145,1726399832228,-163.336442,0.00025582,2]
[338230146,1726399832238,-699.7006778,0.00026141,2]
[338230151,1726399838318,-159.1449546,0.00026141,2]
[338230152,1726399838328,-300.0,0.00026999,2]
[338230153,1726399838338,-300.0,0.00026999,2]
[338230154,1726399838348,-69408.0,0.00027,5]
[338230155,1726399838358,-157.09926175,0.00027167,2]
[338230156,1726399838367,-264.32462785,0.00027267,2]
[338230157,1726399838377,-202.48077168,0.00027297,7]
[338230158,1726399838387,-202.98,0.00027297,7]
[338230159,1726399838396,-162.13461734,0.00027297,7]
[338230160,1726399838406,-162.13461734,0.00027297,7]
[338230161,1726399838415,-162.13461734,0.00027297,7]
[338230162,1726399838424,-162.13461734,0.00027297,7]
[338230163,1726399838434,-162.13461734,0.00027297,7]
[338230164,1726399838444,-162.13461734,0.00027297,7]
[338230165,1726399838453,-162.13461734,0.00027297,7]
[338230166,1726399838463,-162.13461734,0.00027297,7]
[338230167,1726399838472,-162.13461734,0.00027297,7]
[338230168,1726399838482,-155.62114513,0.00027297,7]
[338230169,1726399838491,-155.62114513,0.00027297,7]
[338230170,1726399838501,-155.62114513,0.00027297,7]
[338230171,1726399838511,-155.62114513,0.00027297,7]
[338230172,1726399838520,-156.12,0.00027297,7]
[338230173,1726399838529,-155.69614513,0.00027297,7]
[338230174,1726399838538,-155.69614513,0.00027297,7]
[338230175,1726399838548,-155.69614513,0.00027297,7]
[338230176,1726399838558,-155.69614513,0.00027297,7]
[338230177,1726399838568,-155.69614513,0.00027297,7]
[338230178,1726399838577,-155.69614513,0.00027297,7]
[338230179,1726399838587,-155.69614513,0.00027297,7]
[338230180,1726399838596,-155.69614513,0.00027297,7]
[338230181,1726399838605,-155.69614513,0.00027297,7]
[338230182,1726399838615,-155.69614513,0.00027297,7]
[338230183,1726399838624,-155.69614513,0.00027297,7]
[338230184,1726399838633,-155.69614513,0.00027297,7]
[338230185,1726399838643,-155.69614513,0.00027297,7]
[338230186,1726399838653,-155.69614513,0.00027297,7]
[338230187,1726399838662,-155.69614513,0.00027297,7]
[338230188,1726399838671,-155.69614513,0.00027297,7]
[338230189,1726399838681,-155.69614513,0.00027297,7]
[338230190,1726399838690,-155.69614513,0.00027297,7]
[338230191,1726399838699,-155.69614513,0.00027297,7]
[338230192,1726399838708,-1596.75995034,0.00027297,2]
[338230193,1726399838718,-268.40520299,0.00027373,2]
[338230194,1726399838727,-500.0,0.00027373,2]
[338230195,1726399838737,-500.0,0.00027373,2]
[338230196,1726399838747,-11263.28,0.00027386,2]
[338230197,1726399838757,-3378.17,0.00027387,3]
[338230198,1726399838766,-2815.14,0.00027387,3]
[338230199,1726399838776,-500.0,0.00027396,2]
[338230200,1726399838786,-234.99633051,0.00027396,2]
[338230201,1726399838795,-461.31734776,0.00027396,2]
[338230202,1726399838805,-500.0,0.00027396,2]
[338230203,1726399838815,-500.0,0.00027396,2]
[338230204,1726399838825,-5688.42171629,0.00027397,5]
[338230205,1726399838834,-162.03703704,0.00027397,7]
[338230206,1726399838843,-500.0,0.00027397,5]
[338230207,1726399838852,-597.28,0.00027397,5]
[338230208,1726399838862,-500.0,0.00027397,5]
[338230209,1726399838871,-500.0,0.00027397,5]
[338230210,1726399838882,-1572.5,0.00027397,2]
[338230211,1726399838891,-500.0,0.00027397,5]
[338230212,1726399838900,-500.0,0.00027397,5]
[338230213,1726399838910,-500.0,0.00027397,5]
[338230214,1726399838919,-1229.86,0.00027397,5]
[338230215,1726399838928,-1433.92,0.00027397,5]
[338230216,1726399838938,-500.0,0.00027397,5]
[338230217,1726399838947,-1485.58,0.00027397,5]
[338230218,1726399838956,-336.06983062,0.00027397,5]
[338230219,1726399838965,-1230.04,0.00027397,5]
[338230220,1726399838975,-500.0,0.00027397,5]
[338230221,1726399838984,-680.21,0.00027397,5]
[338230222,1726399838993,-475.84984642,0.00027397,5]
[338230223,1726399839003,-581.35,0.00027397,5]
[338230224,1726399839012,-500.0,0.00027397,5]
[338230225,1726399839021,-633.33592894,0.00027397,5]
[338230226,1726399839031,-500.0,0.00027397,5]
[338230227,1726399839040,-500.0,0.00027397,5]
[338230228,1726399839050,-1086.07,0.00027397,5]
[338230229,1726399839059,-1524.62,0.00027397,5]
[338230230,1726399839068,-270.22078911,0.00027397,5]
[338230231,1726399839078,-500.0,0.00027397,5]
[338230232,1726399839088,-500.0,0.00027397,5]
[338230233,1726399839098,-500.0,0.00027397,5]
[338230234,1726399839107,-500.0,0.00027397,5]
[338230235,1726399839116,-435.65556161,0.00027397,5]
[338230236,1726399839127,-500.0,0.00027397,5]
[338230237,1726399839136,-503.10535772,0.00027397,5]
[338230238,1726399839146,-500.0,0.00027397,5]
[338230239,1726399839156,-559.54,0.00027397,5]
[338230240,1726399839166,-500.0,0.00027397,5]
[338230241,1726399839175,-500.0,0.00027397,5]
[338230242,1726399839184,-500.0,0.00027397,5]
[338230243,1726399839194,-500.0,0.00027397,5]
[338230244,1726399839203,-500.0,0.00027397,5]
[338230245,1726399839213,-703.17,0.00027397,5]
[338230246,1726399839223,-500.0,0.00027397,5]
[338230247,1726399839232,-500.0,0.00027397,5]
[338230248,1726399839242,-746.88,0.00027397,5]
[338230249,1726399839252,-394.23061767,0.00027397,5]
[338230250,1726399839261,-841.34,0.00027397,5]
[338230251,1726399839270,-543.76,0.00027397,5]
[338230252,1726399839280,-500.0,0.00027397,5]
[338230253,1726399839289,-702.27,0.00027397,5]
[338230254,1726399839298,-500.0,0.00027397,5]
[338230255,1726399839307,-500.0,0.00027397,5]
[338230256,1726399839317,-500.0,0.00027397,5]
[338230257,1726399839326,-500.0,0.00027397,5]
[338230258,1726399839336,-219.76,0.00027397,5]
[338230259,1726399839346,-331.11227144,0.00027397,5]
[338230260,1726399839357,-500.0,0.00027397,5]
[338230261,1726399839368,-500.0,0.00027397,5]
[338230262,1726399839378,-500.0,0.00027397,5]
[338230263,1726399839388,-500.0,0.00027397,5]
[338230264,1726399839398,-432.60792598,0.00027397,5]
[338230265,1726399839408,-500.0,0.00027397,5]
[338230266,1726399839418,-500.0,0.00027397,5]
[338230267,1726399839428,-500.0,0.00027397,5]
[338230268,1726399839437,-500.0,0.00027397,5]
[338230269,1726399839447,-501.15912044,0.00027397,5]
[338230270,1726399839457,-500.0,0.00027397,5]
[338230271,1726399839466,-500.0,0.00027397,5]
[338230272,1726399839476,-1533.02,0.00027397,5]
[338230273,1726399839485,-500.0,0.00027397,5]
[338230274,1726399839495,-500.0,0.00027397,5]
[338230275,1726399839504,-500.0,0.00027397,5]
[338230276,1726399839514,-534.62,0.00027397,5]
[338230277,1726399839523,-500.0,0.00027397,5]
[338230278,1726399839533,-500.0,0.00027397,5]
[338230279,1726399839542,-500.0,0.00027397,5]
[338230280,1726399839552,-500.0,0.00027397,5]
[338230281,1726399839561,-500.0,0.00027397,5]
[338230282,1726399839571,-605.73,0.00027397,5]
[338230283,1726399839582,-500.0,0.00027397,5]
[338230284,1726399839592,-503.45834842,0.00027397,5]
[338230285,1726399839601,-500.0,0.00027397,5]
[338230286,1726399839610,-710.5,0.00027397,5]
[338230287,1726399839619,-500.0,0.00027397,5]
[338230288,1726399839629,-790.85,0.00027397,5]
[338230289,1726399839639,-500.0,0.00027397,5]
[338230290,1726399839648,-500.0,0.00027397,5]
[338230292,1726399839658,-947.21,0.00027397,5]
[338230293,1726399839667,-695.42,0.00027397,5]
[338230295,1726399839677,-500.0,0.00027397,5]
[338230296,1726399839686,-1576.9,0.00027397,5]
[338230297,1726399839695,-509.95,0.00027397,5]
[338230298,1726399839705,-500.0,0.00027397,5]
[338230299,1726399839715,-500.0,0.00027397,5]
[338230300,1726399839725,-2391.81,0.00027397,5]
[338230301,1726399839735,-500.0,0.00027397,5]
[338230302,1726399839744,-500.0,0.00027397,5]
[338230303,1726399839754,-500.0,0.00027397,5]
[338230304,1726399839764,-500.83466742,0.00027397,5]
[338230307,1726399839774,-500.0,0.00027397,5]
[338230308,1726399839783,-500.0,0.00027397,5]
[338230309,1726399839793,-500.0,0.00027397,5]
[338230311,1726399839803,-500.0,0.00027397,5]
[338230312,1726399839812,-500.0,0.00027397,5]
[338230313,1726399839822,-500.0,0.00027397,5]
[338230315,1726399839831,-733.53,0.00027397,5]
[338230316,1726399839841,-500.0,0.00027397,5]
[338230317,1726399839850,-846.74,0.00027397,5]
[338230318,1726399839860,-500.0,0.00027397,5]
[338230319,1726399839869,-399.71600553,0.00027397,5]
[338230320,1726399839879,-500.0,0.00027397,5]
[338230321,1726399839888,-500.94,0.00027397,5]
[338230322,1726399839898,-500.0,0.00027397,5]
[338230323,1726399839908,-640.58,0.00027397,5]
[338230324,1726399839918,-542.74,0.00027397,5]
[338230325,1726399839928,-500.0,0.00027397,5]
[338230326,1726399839937,-500.0,0.00027397,5]
[338230327,1726399839947,-500.0,0.00027397,5]
[338230328,1726399839957,-503.55170797,0.00027397,5]
[338230329,1726399839967,-500.0,0.00027397,5]
[338230331,1726399839977,-500.0,0.00027397,5]
[338230333,1726399839987,-500.0,0.00027397,5]
[338230334,1726399839996,-500.0,0.00027397,5]
[338230336,1726399840006,-500.0,0.00027397,5]
[338230338,1726399840015,-500.0,0.00027397,5]
[338230340,1726399840025,-518.4,0.00027397,5]
[338230342,1726399840036,-1347.7,0.00027397,5]
[338230344,1726399840046,-500.0,0.00027397,5]
[338230346,1726399840056,-500.0,0.00027397,5]
[338230348,1726399840065,-500.0,0.00027397,5]
[338230350,1726399840074,-500.0,0.00027397,5]
[338230352,1726399840084,-500.0,0.00027397,5]
[338230354,1726399840093,-500.0,0.00027397,5]
[338230355,1726399840103,-500.0,0.00027397,5]
[338230356,1726399840117,-500.0,0.00027397,5]
[338230357,1726399840126,-1239.32,0.00027397,5]
[338230358,1726399840136,-1105.62,0.00027397,5]
[338230359,1726399840145,-500.0,0.00027397,5]
[338230360,1726399840156,-500.0,0.00027397,5]
[338230361,1726399840165,-500.0,0.00027397,5]
[338230362,1726399840175,-503.43648968,0.00027397,5]
[338230363,1726399840184,-500.0,0.00027397,5]
[338230364,1726399840194,-1454.0,0.00027397,5]
[338230365,1726399840205,-500.0,0.00027397,5]
[338230366,1726399840214,-500.0,0.00027397,5]
[338230368,1726399840224,-500.0,0.00027397,5]
[338230369,1726399840233,-883.63,0.00027397,5]
[338230370,1726399840243,-500.0,0.00027397,5]
[338230371,1726399840252,-1575.62,0.00027397,5]
[338230372,1726399840262,-536.49,0.00027397,5]
[338230373,1726399840272,-500.0,0.00027397,5]
[338230374,1726399840282,-3258.73,0.00027397,5]
[338230375,1726399840291,-500.0,0.00027397,5]
[338230376,1726399840301,-500.0,0.00027397,5]
[338230377,1726399840310,-500.0,0.00027397,5]
[338230378,1726399840320,-500.0,0.00027397,2]
[338230379,1726399840329,-500.0,0.00027397,5]
[338230380,1726399840338,-500.0,0.00027397,5]
[338230381,1726399840348,-500.0,0.00027397,2]
[338230382,1726399840358,-500.0,0.00027397,5]
[338230383,1726399840367,-500.0,0.00027397,5]
[338230384,1726399840377,-679.08,0.00027397,5]
[338230385,1726399840386,-500.0,0.00027397,5]
[338230386,1726399840395,-688.19,0.00027397,5]
[338230387,1726399840405,-557.25,0.00027397,5]
[338230388,1726399840414,-500.0,0.00027397,5]
[338230389,1726399840424,-500.0,0.00027397,5]
[338230390,1726399840433,-745.52,0.00027397,5]
[338230391,1726399840442,-500.0,0.00027397,5]
[338230392,1726399840451,-500.0,0.00027397,5]
[338230393,1726399840461,-1109.99,0.00027397,5]
[338230394,1726399840471,-517.08,0.00027397,5]
[338230395,1726399840481,-3081.98,0.00027397,5]
[338230396,1726399840491,-500.0,0.00027397,5]
[338230397,1726399840500,-500.0,0.00027397,5]
[338230398,1726399840510,-617.54,0.00027397,5]
[338230399,1726399840520,-500.0,0.00027397,5]
[338230400,1726399840529,-500.0,0.00027397,5]
[338230401,1726399840538,-500.0,0.00027397,5]
[338230402,1726399840548,-747.47,0.00027397,5]
[338230403,1726399840558,-500.0,0.00027397,5]
[338230404,1726399840568,-514.02591287,0.00027397,5]
[338230405,1726399840578,-696.56,0.00027397,5]
[338230406,1726399840587,-500.0,0.00027397,5]
[338230407,1726399840598,-723.51,0.00027397,5]
[338230408,1726399840607,-500.0,0.00027397,5]
[338230409,1726399840617,-3607.25,0.00027397,5]
[338230410,1726399840626,-592.58,0.00027397,5]
[338230411,1726399840635,-500.0,0.00027397,5]
[338230412,1726399840645,-1939.33,0.00027397,5]
[338230413,1726399840654,-500.0,0.00027397,5]
[338230414,1726399840663,-500.0,0.00027397,5]
[338230415,1726399840673,-500.0,0.00027397,5]
[338230416,1726399840682,-500.0,0.00027397,5]
[338230417,1726399840691,-693.22,0.00027397,5]
[338230418,1726399840701,-500.0,0.00027397,5]
[338230419,1726399840711,-833.67,0.00027397,5]
[338230420,1726399840720,-557.76512627,0.00027397,5]
[338230421,1726399840729,-500.0,0.00027397,5]
[338230422,1726399840739,-1271.89,0.00027397,5]
[338230423,1726399840748,-517.97,0.00027397,5]
[338230424,1726399840757,-500.0,0.00027397,5]
[338230425,1726399840767,-592.91,0.00027397,5]
[338230426,1726399840776,-946.33,0.00027397,5]
[338230427,1726399840785,-776.14,0.00027397,5]
[338230428,1726399840795,-500.0,0.00027397,5]
[338230429,1726399840804,-1046.89,0.00027397,5]
[338230430,1726399840813,-500.0,0.00027397,5]
[338230431,1726399840822,-906.36,0.00027397,5]
[338230432,1726399840832,-500.0,0.00027397,5]
[338230433,1726399840841,-500.0,0.00027397,5]
[338230434,1726399840850,-500.0,0.00027397,5]
[338230435,1726399840859,-500.0,0.00027397,5]
[338230436,1726399840869,-500.0,0.00027397,5]
[338230437,1726399840878,-500.0,0.00027397,5]
[338230438,1726399840888,-500.0,0.00027397,5]
[338230439,1726399840897,-333.87845105,0.00027397,5]
[338230440,1726399840907,-500.0,0.00027397,120]
[338230441,1726399840916,-504.11422302,0.00027397,5]
[338230442,1726399840925,-500.0,0.00027397,5]
[338230443,1726399840934,-2004.29,0.00027397,5]
[338230444,1726399840943,-622.26,0.00027397,5]
[338230445,1726399840953,-699.63,0.00027397,5]
[338230446,1726399840962,-500.0,0.00027397,5]
[338230447,1726399840971,-546.36,0.00027397,5]
[338230448,1726399840980,-500.0,0.00027397,5]
[338230449,1726399840989,-500.0,0.00027397,5]
[338230450,1726399840999,-835.17,0.00027397,5]
[338230451,1726399841008,-500.0,0.00027397,5]
[338230452,1726399841017,-502.1275904,0.00027397,2]
[338230453,1726399841026,-1013.48,0.00027397,5]
[338230454,1726399841036,-500.0,0.00027397,5]
[338230455,1726399841045,-589.39993438,0.00027397,5]
[338230456,1726399841055,-151.0,0.00027397,7]
[338230457,1726399841064,-151.0,0.00027397,7]
[338230458,1726399841073,-500.0,0.00027397,5]
[338230459,1726399841083,-508.9849536,0.00027397,5]
[338230460,1726399841092,-500.0,0.00027397,5]
[338230461,1726399841102,-500.0,0.00027397,5]
[338230462,1726399841111,-2377.8,0.00027397,5]
[338230463,1726399841120,-500.0,0.00027397,5]
[338230464,1726399841130,-151.0,0.00027397,7]
[338230465,1726399841139,-1077.11,0.00027397,5]
[338230466,1726399841148,-500.0,0.00027397,5]
[338230467,1726399841156,-500.0,0.00027397,5]
[338230468,1726399841166,-500.0,0.00027397,5]
[338230469,1726399841175,-500.46989776,0.00027397,5]
[338230470,1726399841184,-2611.9,0.00027397,5]
[338230471,1726399841193,-1077.07,0.00027397,5]
[338230472,1726399841204,-500.0,0.00027397,5]
[338230473,1726399841213,-500.0,0.00027397,5]
[338230474,1726399841222,-508.54925446,0.00027397,5]
[338230475,1726399841231,-856.26,0.00027397,5]
[338230476,1726399841241,-606.55,0.00027397,5]
[338230477,1726399841251,-1521.36,0.00027397,5]
[338230478,1726399841260,-500.0,0.00027397,5]
[338230479,1726399841269,-500.0,0.00027397,5]
[338230480,1726399841279,-500.0,0.00027397,5]
[338230481,1726399841289,-500.0,0.00027397,5]
[338230482,1726399841298,-546.27,0.00027397,5]
[338230483,1726399841307,-649.14,0.00027397,5]
[338230484,1726399841317,-686.55,0.00027397,5]
[338230485,1726399841326,-1363.7,0.00027397,2]
[338230486,1726399841335,-1079.28,0.00027397,5]
[338230487,1726399841344,-500.0,0.00027397,5]
[338230488,1726399841353,-500.0,0.00027397,5]
[338230489,1726399841362,-696.38,0.00027397,5]
[338230490,1726399841372,-500.0,0.00027397,5]
[338230491,1726399841381,-500.0,0.00027397,5]
[338230492,1726399841390,-500.0,0.00027397,5]
[338230493,1726399841400,-497.87133752,0.00027397,5]
[338230494,1726399841410,-500.0,0.00027397,5]
[338230495,1726399841420,-500.0,0.00027397,5]
[338230496,1726399841429,-1777.34,0.00027397,5]
[338230497,1726399841439,-500.0,0.00027397,5]
[338230498,1726399841448,-649.95,0.00027397,5]
[338230499,1726399841458,-1538.08,0.00027397,5]
[338230500,1726399841467,-501.25918916,0.00027397,5]
[338230501,1726399841476,-500.0,0.00027397,5]
[338230502,1726399841486,-500.0,0.00027397,5]
[338230503,1726399841495,-606.04,0.00027397,5]
[338230504,1726399841504,-505.48155771,0.00027397,5]
[338230505,1726399841513,-928.31,0.00027397,5]
[338230506,1726399841523,-487.5146554,0.00027397,5]
[338230507,1726399841532,-1470.15,0.00027397,5]
[338230508,1726399841541,-500.0,0.00027397,5]
[338230509,1726399841551,-500.0,0.00027397,5]
[338230510,1726399841560,-151.0,0.00027397,7]
[338230511,1726399841569,-151.0,0.00027397,7]
[338230512,1726399841579,-500.0,0.00027397,5]
[338230513,1726399841588,-500.0,0.00027397,5]
[338230514,1726399841597,-500.0,0.00027397,5]
[338230515,1726399841606,-500.0,0.00027397,5]
[338230516,1726399841616,-500.0,0.00027397,5]
[338230517,1726399841625,-471.83191211,0.00027397,5]
[338230518,1726399841634,-500.0,0.00027397,5]
[338230519,1726399841644,-2146.89,0.00027397,5]
[338230520,1726399841653,-757.35,0.00027397,5]
[338230521,1726399841662,-500.0,0.00027397,5]
[338230522,1726399841671,-1694.24,0.00027397,5]
[338230523,1726399841681,-500.0,0.00027397,5]
[338230524,1726399841691,-500.0,0.00027397,5]
[338230525,1726399841699,-500.0,0.00027397,5]
[338230526,1726399841709,-500.0,0.00027397,5]
[338230527,1726399841719,-785.51,0.00027397,5]
[338230528,1726399841728,-500.0,0.00027397,5]
[338230529,1726399841738,-1074.2,0.00027397,5]
[338230530,1726399841747,-500.0,0.00027397,5]
[338230531,1726399841756,-500.0,0.00027397,5]
[338230532,1726399841765,-500.0,0.00027397,5]
[338230533,1726399841774,-500.0,0.00027397,5]
[338230534,1726399841783,-714.87,0.00027397,5]
[338230535,1726399841793,-500.0,0.00027397,5]
[338230536,1726399841802,-500.0,0.00027397,5]
[338230537,1726399841811,-500.0,0.00027397,5]
[338230538,1726399841821,-721.14,0.00027397,5]
[338230539,1726399841830,-582.73580579,0.00027397,5]
[338230540,1726399841838,-500.0,0.00027397,5]
[338230541,1726399841847,-2035.15,0.00027397,5]
[338230542,1726399841856,-500.0,0.00027397,5]
[338230543,1726399841864,-500.0,0.00027397,5]
[338230544,1726399841873,-500.0,0.00027397,5]
[338230545,1726399841883,-500.0,0.00027397,5]
[338230546,1726399841892,-500.0,0.00027397,5]
[338230547,1726399841901,-1092.44,0.00027397,5]
[338230548,1726399841910,-2241.47,0.00027397,5]
[338230549,1726399841919,-500.0,0.00027397,5]
[338230550,1726399841928,-500.0,0.00027397,5]
[338230551,1726399841938,-500.0,0.00027397,5]
[338230552,1726399841947,-502.37321718,0.00027397,5]
[338230553,1726399841957,-564.64138051,0.00027397,5]
[338230554,1726399841966,-250.0,0.00027397,5]
[338230555,1726399841976,-608.26896289,0.00027397,5]
[338230556,1726399841986,-500.0,0.00027397,5]
[338230557,1726399841996,-500.0,0.00027397,5]
[338230558,1726399842005,-500.0,0.00027397,5]
[338230559,1726399842015,-519.70802093,0.00027397,5]
[338230560,1726399842024,-500.0,0.00027397,5]
[338230561,1726399842033,-500.0,0.00027397,5]
[338230562,1726399842043,-1541.29,0.00027397,5]
[338230563,1726399842052,-3328.97,0.00027397,5]
[338230564,1726399842062,-554.54,0.00027397,5]
[338230565,1726399842072,-2154.2,0.00027397,5]
[338230566,1726399842082,-500.0,0.00027397,5]
[338230567,1726399842091,-500.0,0.00027397,5]
[338230568,1726399842100,-1578.51,0.00027397,5]
[338230569,1726399842114,-1623.88,0.00027397,5]
[338230570,1726399842124,-233.290824,0.00027397,7]
[338230571,1726399842133,-500.0,0.00027397,5]
[338230572,1726399842143,-500.0,0.00027397,5]
[338230573,1726399842153,-814.45,0.00027397,5]
[338230574,1726399842163,-70204.99,0.00027397,5]
[338230575,1726399842173,-500.0,0.00027397,5]
[338230576,1726399842182,-2695.61,0.00027397,5]
[338230577,1726399842193,-500.0,0.00027397,5]
[338230578,1726399842203,-500.0,0.00027397,5]
[338230579,1726399842213,-500.0,0.00027397,5]
[338230580,1726399842222,-2818.93,0.00027397,5]
[338230581,1726399842378,-4738.03,0.00027397,5]
[338230582,1726399842412,-500.0,0.00027397,5]
[338230583,1726399842423,-503.61,0.00027397,5]
[338230584,1726399842433,-500.0,0.00027397,5]
[338230585,1726399842443,-885.72,0.00027397,5]
[338230586,1726399842454,-500.0,0.00027397,5]
[338230587,1726399842464,-730.86,0.00027397,5]
[338230588,1726399842473,-9284.83,0.00027397,5]
[338230589,1726399842483,-500.0,0.00027397,5]
[338230590,1726399842494,-500.0,0.00027397,5]
[338230591,1726399842504,-500.0,0.00027397,5]
[338230592,1726399842514,-500.0,0.00027397,5]
[338230593,1726399842524,-500.0,0.00027397,5]
[338230594,1726399842534,-500.0,0.00027397,5]
[338230595,1726399842544,-1653.15,0.00027397,5]
[338230596,1726399842554,-500.0,0.00027397,5]
[338230597,1726399842564,-5855.89,0.00027397,5]
[338230598,1726399842574,-307.57605443,0.00027397,5]
[338230599,1726399842583,-737.38,0.00027397,5]
[338230600,1726399842593,-1629.64,0.00027397,5]
[338230601,1726399842602,-6303.91,0.00027397,5]
[338230602,1726399842612,-500.0,0.00027397,5]
[338230603,1726399842622,-3918.16,0.00027397,5]
[338230604,1726399842631,-500.0,0.00027397,5]
[338230605,1726399842641,-500.0,0.00027397,5]
[338230606,1726399842651,-49894.14999085,0.00027397,5]
[338230607,1726399842677,-2136.83000915,0.00027397,5]
[338230608,1726399842687,-500.0,0.00027397,5]
[338230609,1726399842697,-975.61,0.00027397,5]
[338230610,1726399842707,-500.0,0.00027397,5]
[338230611,1726399842717,-500.0,0.00027397,5]
[338230612,1726399842727,-500.0,0.00027397,5]
[338230613,1726399842737,-14493.07418916,0.00027397,5]
[338230614,1726399842749,-4598.2762932,0.00027397,5]
[338230618,1726399843020,-5270.01570441,0.00027397,5]
[338230621,1726399843449,-4153.46180991,0.00027397,5]